Cogmind - Beta 17 @@@ ROGUE MODE // 2026.08.16 @ 05:32:52 Player: 4R-ZE3 Result: Self-destructed Performance ------------- Evolutions (2) 1000 Regions Visited (3) 600 Robots Destroyed (24) 120 Value Destroyed (556) 556 Prototype IDs (0) 0 Alien Tech Used (0) 0 Bonus (0) 0 TOTAL SCORE: 2276 Bonus ------- None Cogmind --------- Core Integrity 230/550 Matter 69/300 Energy 15/100 System Corruption 0% Temperature Critical (566) Movement Core (700) Ox13 Location -8/Materials Parts ------- > --- POWER (1) -------- (None) > --- PROPULSION (3) --- (None) > --- UTILITY (4) ------ High-capacity Storage Unit > --- WEAPON (3) ------- (None) > --- INVENTORY (20) --- Light Ion Engine Improved Ion Engine Light Treads Compact Wheel Compact Wheel Heat Sink High-capacity Storage Unit Small Laser Beam Cannon Subdweller Shrapnel Launcher Mining Claw Peak State ------------ > --- POWER ------------ Nuclear Core > --- PROPULSION ------- Light Treads Light Treads Light Treads > --- UTILITY ---------- Improved Heat Sink High-capacity Storage Unit Scrap Shield > --- WEAPON ----------- Beam Cannon Beam Cannon Heavy Particle Cannon > --- INVENTORY -------- Light Ion Engine Improved Ion Engine Improved Ion Engine Improved Ion Engine Light Treads Compact Wheel Compact Wheel Heat Sink High-capacity Storage Unit Improved Light Armor Plating Small Laser Small Laser Subdweller Laser Beam Cannon Subdweller Shrapnel Launcher Mining Claw [Rating: 21] Favorites ----------- Power Improved Ion Engine Engine Improved Ion Engine Power Core Nuclear Core Propulsion Light Treads Treads Light Treads Wheel Compact Wheel Utility High-capacity Storage Unit Device Heat Sink Storage High-capacity Storage Unit Protection Scrap Shield Weapon Beam Cannon Energy Gun Small Laser Energy Cannon Beam Cannon Ballistic Gun Assault Rifle Build | -11 -10 -10 -8 ------- Run | Yrd Mat Sub Mat Slots Evolved 4 | . . . 4 Power . | . . . . Propulsion 1 | . . . 1 Utility 2 | . . . 2 Weapon 1 | . . . 1 Parts Attached 28 | 7 10 2 9 Power 4 | 1 1 . 2 Engine 3 | 1 1 . 1 Core 1 | . . . 1 Reactor . | . . . . Propulsion 8 | 3 3 1 1 Treads 6 | 2 2 1 1 Leg . | . . . . Wheel 2 | 1 1 . . Hover . | . . . . Flight . | . . . . Utility 8 | 1 3 1 3 Device 3 | . 1 1 1 Storage 3 | 1 2 . . Processor . | . . . . Hackware . | . . . . Protection 2 | . . . 2 Artifact . | . . . . Weapon 8 | 2 3 . 3 Energy Gun 3 | 1 1 . 1 Energy Cannon 4 | . 2 . 2 Ballistic Gun 1 | 1 . . . Ballistic Cannon . | . . . . Launcher . | . . . . Special Weapon . | . . . . Impact Weapon . | . . . . Slashing Weapon . | . . . . Piercing Weapon . | . . . . Special Melee Weapon . | . . . . Unidentified Prototypes . | . . . . Parts Lost 14 | . 2 2 10 Power 2 | . . . 2 Propulsion 4 | . 1 1 2 Utility 3 | . . 1 2 Weapon 5 | . 1 . 4 Highest Loss Streak 10 | . 2 2 10 To Critical Strikes . | . . . . Average Backups 10 | 1 8 14 14 Power 2 | . 2 3 3 Propulsion 3 | 1 2 4 3 Utility 1 | . . 1 1 Weapon 3 | . 2 6 5 Tool/Special . | . . . . Unused Backups 3 | . 1 . 2 Power 1 | . . . 1 Propulsion . | . . . . Utility . | . . . . Weapon 2 | . 1 . 1 Tool/Special . | . . . . Average Slot Usage (%) 93 | . 96 100 86 Engine 10 | . 14 14 1 Core 2 | . . . 7 Treads 21 | . 18 28 25 Wheel 5 | . 9 . . Device 10 | . 11 14 8 Storage 12 | . 14 14 9 Protection 2 | . . . 8 Energy Gun 6 | . 10 . . Energy Cannon 16 | . 10 28 25 Ballistic Gun 4 | . 7 . . Peak Build Rating 21 | 6 10 10 21 Average Rating 10 | 4 8 9 17 On Entrance 6 | . 6 10 10 Avg Prop Armor Cover (%) . | . . . . Naked Turns . | . . . . Heaviest Build 78 | 11 54 54 78 Greatest Support 60 | 40 40 40 60 Greatest Overweight (x) 1 | 1 1 1 1 Average Overweight (x) . | . . 1 1 Largest Inventory Capacity 20 | 8 20 20 20 Average Capacity 17 | 7 16 20 20 Most Carried 17 | 3 16 16 17 Average Carried 10 | 1 8 14 14 Final Capacity 20 | 8 20 20 20 Final Carried 16 | 3 16 16 11 Class Distribution -------------------- 75% | Mutant 24% | Tank Dominant Class ---------------- Mutant | -10/Materials Mutant | -10/Subcaves Tank | -8/Materials Resources | -11 -10 -10 -8 ----------- Run | Yrd Mat Sub Mat Matter Collected 528 | 256 207 15 50 Remotely . | . . . . Salvage Created 778 | . 385 102 291 Parts 43 | . 22 5 16 Haulers Intercepted 1 | . . . 1 Recyclers Shooed . | . . . . Parts Field Recycled . | . . . . Retrieved Matter . | . . . . Parts Self-Destructed . | . . . . Prevented . | . . . . Parts Restored . | . . . . Kills | -11 -10 -10 -8 ------- Run | Yrd Mat Sub Mat Combat Hostiles Destroyed 20 | . 13 2 5 Guns 10 | . 10 . . Cannons 10 | . 3 2 5 Classes Destroyed 8 | . 4 . 4 Worker 1 | . 1 . . Builder 2 | . . . 2 Hauler 1 | . . . 1 Swarmer 8 | . 6 . 2 Grunt 7 | . 6 . 1 Duelist 1 | . . . 1 Sentry 1 | . . . 1 Subdweller 3 | . 1 2 . Best Kill Streak 7 | . 7 2 4 Combat Bots Only 6 | . 6 2 3 Max Kills in Single Turn 2 | . 1 1 2 Gunslinging . | . . . . Exploded . | . . . . Melee . | . . . . Uniques/NPCs Destroyed . | . . . . Combat | -11 -10 -10 -8 -------- Run | Yrd Mat Sub Mat Hostile Shots Fired 206 | . 101 18 87 Missed 53 | . 26 6 21 Hits 153 | . 75 12 66 Melee 10 | . . . 10 Projectile 143 | . 75 12 56 AOE 2 | . 2 . . Critical Strikes 6 | . . . 6 Damage Taken 2262 | . 753 250 1259 Core 454 | . 112 22 320 Absorbed by Shields . | . . . . Core Remaining (%) 73 | 100 . 46 . Volleys Fired 90 | . 49 12 29 Largest 3 | . 2 2 3 Hottest 195 | . 120 120 195 Shots Fired 197 | . 98 24 75 Gun 88 | . 86 . 2 Cannon 109 | . 12 24 73 Launcher . | . . . . Special . | . . . . Kinetic 31 | . 31 . . Thermal 166 | . 67 24 75 Explosive . | . . . . Electromagnetic . | . . . . Robot Hit Streak 11 | . 11 8 7 Robot Miss Streak 5 | . 5 2 4 Penetration Max . | . . . . Secondary Targets 1 | . 1 . . Max Gunslinging Chain 1 | . 1 . . Shots Hit Robots 99 | . 59 17 23 Core Hits 34 | . 19 4 11 Critical Kills . | . . . . Critical Parts Destroyed 1 | . 1 . . Critical Strikes 1 | . 1 . . Destroy 1 | . 1 . . Melee Attacks . | . . . . Impact . | . . . . Slashing . | . . . . Piercing . | . . . . Sneak Attacks . | . . . . Combat Hostiles . | . . . . Follow-up Attacks . | . . . . Damage Inflicted 1667 | . 747 302 618 Guns 606 | . 606 . . Cannons 1061 | . 141 302 618 Explosions . | . . . . Melee . | . . . . Ramming . | . . . . Kinetic 265 | . 265 . . Thermal 1402 | . 482 302 618 Explosive . | . . . . Electromagnetic . | . . . . Impact . | . . . . Slashing . | . . . . Piercing . | . . . . Highest Corruption . | . . . . Average Corruption . | . . . . Corruption Purged . | . . . . Corruption Blocked . | . . . . Overload Shots . | . . . . Overflow Damage . | . . . . Projectiles . | . . . . Explosions . | . . . . Melee . | . . . . Knockbacks . | . . . . Impact . | . . . . Kinetic . | . . . . Secondary . | . . . . Self-Inflicted Damage . | . . . . Shots . | . . . . Rammed . | . . . . Targets Rammed . | . . . . Kicked . | . . . . Crushed . | . . . . Highest Temperature 767 | . 138 2 767 Average Temperature 282 | . 42 1 359 Received Heat Transfer 651 | . 132 42 477 Effects 46 | . . . 46 Shutdowns 6 | . . . 6 Energy Bleed 4 | . . . 4 Interference 6 | . . . 6 Matter Decay 7 | . . . 7 Short Circuit 3 | . . . 3 Damage (minor) 3 | . . . 3 Damage (major) 16 | . . . 16 Damage (core) 1 | . . . 1 Siege Activations . | . . . . Martial Activations . | . . . . Shielding Activations . | . . . . Robots Disrupted . | . . . . Combat Hostiles . | . . . . Robots Corrupted . | . . . . Combat Hostiles . | . . . . Parts Fried . | . . . . Impact Corruptions . | . . . . Robots Melted . | . . . . Combat Hostiles . | . . . . Parts Melted 2 | . 1 . 1 Heat Transferred 2810 | . 1071 629 1110 Parts Sabotaged . | . . . . Parts Stolen . | . . . . Parts Stripped . | . . . . Power Chain Reactions . | . . . . Alert | -11 -10 -10 -8 ------- Run | Yrd Mat Sub Mat Maximum Alert Level 1 | . 1 . . Low Security (%) 94 | 100 91 . 100 Level 1 5 | . 8 . . Level 2 . | . . . . Level 3 . | . . . . Level 4 . | . . . . Level 5 . | . . . . High Security . | . . . . Max Security . | . . . . Peak Influence 212 | . 212 . 95 Initial . | . . . . Average 61 | . 84 . 24 Influence Increases 618 | . 406 . 212 Destroy 0b10 Robot/C 340 | . 240 . 100 Destroy 0b10 Robot/NC 20 | . 5 . 15 Destroy Leader 72 | . 50 . 22 Successful Hack 4 | . 4 . . Select Force Hacks 30 | . 30 . . Destroy Structure 17 | . 2 . 15 Lose Combat Pursuer 135 | . 75 . 60 Influence Decreases 618 | . 266 138 214 Entered New Map 70 | . . 68 2 Time Decay 420 | . 246 50 124 Lost Part 128 | . 20 20 88 Squads Dispatched 4 | . 4 . . Investigation 3 | . 3 . . Extermination . | . . . . Reinforcement 1 | . 1 . . Assault . | . . . . Garrison . | . . . . Intercept . | . . . . Searches Triggered . | . . . . Construction Impeded . | . . . . Haulers Reinforced . | . . . . Active Scanning Responses . | . . . . Cargo Convoy Interrupts . | . . . . Stealth | -11 -10 -10 -8 --------- Run | Yrd Mat Sub Mat Distress Signals 2 | . 1 . 1 Communications Jammed . | . . . . Distress Signals . | . . . . Times Spotted 48 | . 32 2 14 Peak Tracking Total 7 | . 7 2 6 Tactical Retreats 5 | . 1 . 4 Traps | -11 -10 -10 -8 ------- Run | Yrd Mat Sub Mat Traps Triggered 2 | . 2 . . Indirectly . | . . . . Trap Hack Attempts . | . . . . Triggered . | . . . . Disarmed . | . . . . Reprogrammed . | . . . . Reused . | . . . . Traps Extracted . | . . . . Installed . | . . . . Triggered . | . . . . Machines | -11 -10 -10 -8 ---------- Run | Yrd Mat Sub Mat Machines Disabled . | . . . . Max in Single Turn . | . . . . Machines Repaired . | . . . . Machines Dismantled . | . . . . Machines Sabotaged . | . . . . Overloaded Fab Kills . | . . . . Hacking | -11 -10 -10 -8 --------- Run | Yrd Mat Sub Mat Machines Accessed 4 | . 4 . . Terminals 3 | . 3 . . Fabricators . | . . . . Repair Stations . | . . . . Recycling Units 1 | . 1 . . Scanalyzers . | . . . . Garrison Access . | . . . . Total Hacks 10 | . 10 . . Successful 3 | . 3 . . Failed 7 | . 7 . . Catastrophic . | . . . . Database Lockouts . | . . . . Manual 10 | . 10 . . Terminals 9 | . 9 . . Fabricators . | . . . . Repair Stations . | . . . . Recycling Units 1 | . 1 . . Scanalyzers . | . . . . Garrison Access . | . . . . Terminal Hacks . | . . . . Fabricator Hacks . | . . . . Repair Station Hacks . | . . . . Recycling Unit Hacks . | . . . . Scanalyzer . | . . . . Garrison Access Hacks . | . . . . Unauthorized Hacks 3 | . 3 . . Terminals 2 | . 2 . . Botnet 2 | . 2 . . Fabricators . | . . . . Repair Stations . | . . . . Recycling Units 1 | . 1 . . Tunnel 1 | . 1 . . Scanalyzers . | . . . . Garrison Access . | . . . . Data Cores Recovered . | . . . . Used . | . . . . Hacking Detections 3 | . 3 . . Full Trace Events . | . . . . Feedback Events . | . . . . Feedback Blocked . | . . . . Robot Schematics Acquired . | . . . . Robots Built . | . . . . Authchips . | . . . . Time . | . . . . Total Robot Build Rating . | . . . . Part Schematics Acquired . | . . . . Parts Built . | . . . . Authchips . | . . . . Time . | . . . . Total Part Build Rating . | . . . . Part Studies Acquired . | . . . . Parts Repaired . | . . . . Time . | . . . . Parts Recycled . | . . . . Recycled Matter . | . . . . Retrieved Matter . | . . . . Retrieved Components . | . . . . Parts Scanalyzed . | . . . . Part Schematics Acquired . | . . . . Parts Damaged . | . . . . Bothacking | -11 -10 -10 -8 ------------ Run | Yrd Mat Sub Mat Used RIF Installer . | . . . . Robots Hacked . | . . . . Non-combat . | . . . . Combat . | . . . . Robot Hacks Applied . | . . . . Relay Couplers Released . | . . . . Fabnet Peak Effective % . | . . . . Robots Rewired . | . . . . Allies Hacked . | . . . . Hacks Repelled . | . . . . Allies | -11 -10 -10 -8 -------- Run | Yrd Mat Sub Mat Total Allies . | . . . . Largest Group . | . . . . Highest-Rated Group . | . . . . Highest-Rated Ally . | . . . . Total Orders . | . . . . Ally Attacks . | . . . . Total Damage . | . . . . Kills . | . . . . Allies Corrupted . | . . . . Allies Melted . | . . . . Intel | -11 -10 -10 -8 ------- Run | Yrd Mat Sub Mat Active Infowar (turns) . | . . . . Robot Analysis Total . | . . . . Derelict Logs Recovered 2 | . . 2 . Drone Launches . | . . . . Drone Recoveries . | . . . . Exploration | -11 -10 -10 -8 ------------- Run | Yrd Mat Sub Mat Turns Passed 1408 | 73 826 117 392 Spaces Moved 510 | 40 334 33 103 Core 4 | 4 . . . Treads 367 | 35 196 33 103 Legs . | . . . . Wheels 139 | 1 138 . . Hover . | . . . . Flight . | . . . . Fastest Speed 50 | 50 115 240 240 Average Speed 181 | 150 161 240 240 Slowest Speed 240 | 160 240 240 240 Overloaded Moves . | . . . . Propulsion Burnouts . | . . . . Robots Hopped . | . . . . Potential Cave-ins . | . . . . Cave-ins Triggered . | . . . . Exploration Rate (%) 23 | 4 67 4 18 Regions Visited 3 Branch Regions 1 Pre-discovered Areas 1 | . 1 . . Known Exits Taken . | . . . . Unknown Exits Taken 3 | 1 1 1 . Scrap Searched . | . . . . Spaces Dug 5 | . . . 5 Terrain Destroyed 15 | . . . 15 Melee . | . . . . Projectile 15 | . . . 15 AOE . | . . . . Terrain Rammed . | . . . . Walls Destroyed . | . . . . Machines Disabled . | . . . . Actions | -11 -10 -10 -8 --------- Run | Yrd Mat Sub Mat Total 803 | 50 520 48 185 Wait 151 | 1 111 1 38 Move 507 | 39 333 32 103 Hop . | . . . . Pick Up 19 | 3 14 1 1 Fast Attach 7 | 6 1 . . Attach 12 | . 2 2 8 Detach . | . . . . Swap 14 | 1 8 . 5 Drop 3 | . 2 . 1 Fire 90 | . 49 12 29 Melee . | . . . . Ram . | . . . . Kick . | . . . . Crush . | . . . . Escape Stasis . | . . . . Rewire . | . . . . Trap . | . . . . Miscellaneous . | . . . . Route ------- -11/Scrapyard -10/Materials (discovered 5 exits: [*Mat x2] / [*Min x2] / [*Sub]) -10/Subcaves -8/Materials History --------- Turn | Location | Event 2 | -11/Scrapyard | Met Revision 17 14 | -11/Scrapyard | Discovered new exit (range 15) 74 | -11/Scrapyard | Entered Materials 263 | -10/Materials | Discovered new exit (range 10) 301 | -10/Materials | Build established: Mutant 448 | -10/Materials | Discovered new exit (range 10) 661 | -10/Materials | Discovered new exit (range 8) 665 | -10/Materials | Discovered new exit (range 13) 867 | -10/Materials | Discovered new exit (range 7) 874 | -10/Materials | Derelicts attacked the area 900 | -10/Materials | Entered Subcaves 900 | -10/Subcaves | Discovered new exit (range 13) 901 | -10/Subcaves | Approached by a straggling Scientist 945 | -10/Subcaves | Core integrity fell below 50% 961 | -10/Subcaves | Learned Materials emergency access door positions 1017 | -10/Subcaves | Entered Materials 1017 | -8/Materials | Evolved 4 slots: Propulsion x1, Utility x2, Weapon x1 1351 | -8/Materials | Build established: Tank 1408 | -8/Materials | Core integrity fell below 50% 1409 | -8/Materials | Self-destructed Last Messages --------------- 01397_ Imp. Ion Engine destroyed. 01398_ K-01 Serf cleans the Electrolysis Chamber. 01400_ Lgt. Treads destroyed. 01400_ Imp. Light Armor Plating destroyed. 01400_ Broken Lgt. Treads destroyed. 01402_ Overheating: Matter decay (-12). 01402_ Beam Cannon destroyed. 01403_ Overheating: Sml. Laser damaged (-32). 01403_ Overheating: Hcp. Storage Unit damaged (-40). 01403_ Overheating: Sub. Laser damaged (-31). 01404_ Overheating: Sml. Laser damaged (-21). 01404_ Overheating: Hcp. Storage Unit damaged (-20). 01404_ Overheating: Sub. Laser damaged (-13). 01404_ Imp. Ion Engine destroyed. 01406_ Sub. Laser destroyed. 01407_ Sml. Laser severed. 01407_ K-01 Serf collects debris. Map ----- +----------------------------------------------------+ | ?????????????????????????????????????????????????? | | ?????????????????????????????????????????????????? | | ?????????????????????????????????????????????????? | | ?????????????????????????????????????????????????? | | ?????????????????????????????????????????????????? | | ?????????????????????????????????????????????????? | | ?????????????????????????????????????????????????? | | ?????????????????????????????????????????????????? | | ?????????????????????????????????????????????????? | | ?????????????????????????????????????????????????? | | ?????????????????????????????????????????????????? | | ?????????????????????????????????????????????????? | | ?????????????????????????????????????????????????? | | ?????????????????????????????????????????????????? | | ?????????????????????????????????????????????????? | | ??????????????????????????+??+???????????????????? | | ?????????????????????????????????????????????????? | | ?????????????????????????????????????????????????? | | ?????????????????????????????????????????????????? | | ?????????????????????????????????????????????????? | | ?????????????????????????????????????????????????? | | ???????????## ??????##########???????????????????? | | ???????????# ####### ###+####????????????? | | ???????????# = [%= a #????????????? | | ?????????? k g%* *[!% g* #????????????? | | ???????????# kt %== l@= k #????????????? | | ?????????????????####### """ #????????????? | | ??????????????????????### """ #????????????? | | ????????????????######### """ #????????????? | | ????????????????#! # #????????????? | | ????????????????# # #????????????? | | ????????????????# [ # #????????????? | | ????????????????# + u #????????????? | | ????????????????# # u w ?????????? | | ????????????????# ##t#############?????????? | | ????????????????# #? #??# ####?????????????? | | ????????????????# #? #???##????????????????? | | ?????????# ?????####+#####+###???????????????????? | | ?????????# ??????# ! #???????????????????? | | ?????????# ??#?# #???????????????????? | | ?????????+ # #???????????????????? | | ????+????# # """ """ #???????????????????? | | ?????????# + """ """ #???????????????????? | | ?????????# # """ """ #???????????????????? | | ?????????# ?# """ """ #???????????????????? | | ??????? ## #???????????????????? | | ?????? ########+###???????????????????? | | ??????? #??????# #?????????????????????? | | ???????### #??????# #?????????????????????? | | ?????????# #??????# #?????????????????????? | +----------------------------------------------------+ Best States ------------- Heat Dissipation 45 Energy Generation 14 Energy Capacity 265 Matter Stores 300 Matter Capacity 300 Sight Range 16 Terrain Scan Density 10 Armor Coverage 800 Evasion (%) 40 Recoil Reduction 3 Item Schematics ----------------- None Robot Schematics ------------------ None Fabricated ------------ Nothing Repaired ---------- Nothing Studied --------- None Alien Tech Used ----------------- None Achievements -------------- None Challenges ------------ None Game ------ Seed ConstructProtonPod Manual? 0 Play Time 00:13:14 Cumulative 253.1 hours Start 2026.08.16 @ 05:22:57 End 2026.08.16 @ 05:32:52 Sessions 1 Manual Loads 0 Difficulty Rogue Special Mode None Game No. 247 Rogue 193 Adventurer 54 Explorer 0 Win Type - Total 11 Types 7/0/1/1/0/0/0/1/0/1 Lore% 76 Gallery% 64 Achievement% 59 Wizard Run 0 Options --------- Layout 1 ASCII 0 Keyboard 0 Movement Mouse Keybinds 1 Fullscreen 2 Font 32/Tamsyn Map View 50x35 Zoom Use 0% Tactical HUD 1 Map Filters NONE Filters NONE Steam 1 RUN: 53f51ec5-0e7e-497b-86c1-6f6b889a0b29